fUST/lending_fUST_20250803
["ID","MTS","AMOUNT","RATE_DAILY","PERIOD"]
[377008470,1754203832573,-300.0,0.00023758,2]
[377008472,1754203832583,-300.0,0.00023758,2]
[377008474,1754203832592,-300.0,0.00023758,2]
[377008476,1754203832601,-606.0,0.00023758,2]
[377008478,1754203832611,-983.0,0.00023758,2]
[377008479,1754203832620,-500.0,0.000238,2]
[377008480,1754203832630,-17063.1543283,0.000238,2]
[377008481,1754203832671,-424.45497707,0.000238,2]
[377008482,1754203832682,-500.0,0.000238,2]
[377008483,1754203832692,-328.08569729,0.000239,2]
[377008484,1754203832701,-1000.0,0.00024348,2]
[377008485,1754203832710,-1000.0,0.00024348,2]
[377008486,1754203832720,-500.0,0.00024383,2]
[377008487,1754203832729,-570.81,0.00024396,2]
[377008488,1754203832739,-1000.0,0.00024638,2]
[377008489,1754203832749,-6839.2762355,0.00024828,2]
[377008490,1754203832759,-291.9041665,0.00024846,2]
[377008491,1754203832768,-1500.0,0.00024896,2]
[377008492,1754203832777,-200.0,0.00024946,15]
[377008493,1754203832786,-300.0,0.00024946,15]
[377008494,1754203832795,-471.91580219,0.00025,30]
[377008495,1754203832804,-570.81,0.00025,7]
[377008496,1754203832815,-509.2518971,0.00025004,2]
[377008497,1754203832825,-193.686356,0.00025022,2]
[377008498,1754203832835,-2000.0,0.00025444,2]
[377008499,1754203832844,-173.1,0.00025465,7]
[377008500,1754203832854,-173.1,0.00025565,7]
[377008501,1754203832863,-500.8004463,0.00025587,2]
[377008502,1754203832873,-173.1,0.00025665,7]
[377008503,1754203832883,-3189.3221687,0.00025677,2]
[377008504,1754203832892,-570.81,0.00025702,7]
[377008505,1754203832901,-173.1,0.00025765,7]
[377008506,1754203832911,-420.0,0.00025771,2]
[377008507,1754203832920,-251.54,0.00025806,2]
[377008508,1754203832930,-160.0,0.0002585,2]
[377008509,1754203832939,-173.1,0.00025865,7]
[377008510,1754203832949,-173.10583396,0.00025965,7]
[377008511,1754203832959,-173.60050195,0.00025992,2]
[377008512,1754203832968,-570.81,0.00026354,7]
[377008513,1754203832979,-260.0,0.00026398,2]
[377008514,1754203832988,-331.76755859,0.00026575,2]
[377008515,1754203832997,-216.32054205,0.00026607,2]
[377008516,1754203833007,-166.64887445,0.00026659,2]
[377008517,1754203833016,-360.0,0.00026946,2]
[377008518,1754203833025,-291.90416644,0.00026997,2]
[377008519,1754203833035,-570.81,0.00027006,7]
[377008520,1754203833045,-162.3621158,0.00027025,2]
[377008521,1754203833055,-430.545078,0.00027041,2]
[377008523,1754203833065,-200.0,0.00027364,15]
[377008525,1754203833074,-200.0,0.00027364,15]
[377008526,1754203833084,-300.0,0.00027364,15]
[377008528,1754203833093,-202.20146902,0.00027397,2]
[377008530,1754203833103,-460.0,0.00027494,2]
[377008532,1754203833112,-570.81,0.00027659,7]
[377008534,1754203833122,-275.08,0.00027835,10]
[377008536,1754203833131,-48975.83588543,0.00027845,2]
[377008543,1754203833200,-2742.10942162,0.00027845,2]
[377008584,1754203838546,-159.02,0.0002366,2]
[377008585,1754203838557,-160.0,0.00023757,2]
[377008586,1754203838566,-159.02,0.00024322,2]
[377008587,1754203838576,-159.02,0.00025,7]
[377008588,1754203838586,-159.02,0.00025647,7]
[377008589,1754203838597,-159.02,0.00026309,7]
[377008590,1754203838606,-887.2,0.00027845,2]
[377008591,1754203838683,-4191.74395702,0.00027845,2]
[377008592,1754203838693,-500.0,0.00027873,5]
[377008593,1754203838810,-345.59225215,0.00027898,2]
[377008594,1754203838820,-500.0,0.00027934,2]
[377008595,1754203838829,-363.90445453,0.00027934,2]
[377008596,1754203838838,-500.0,0.00027934,2]
[377008597,1754203838847,-500.0,0.00027934,2]
[377008598,1754203838856,-500.0,0.00027934,2]
[377008599,1754203838868,-500.0,0.00027934,2]
[377008600,1754203838877,-491.69690039,0.00027934,2]
[377008601,1754203838889,-8.30309961,0.00027934,2]
[377008602,1754203838899,-500.0,0.00027934,2]
[377008603,1754203838908,-467.95277359,0.00027934,2]
[377008604,1754203838917,-500.0,0.00027934,2]
[377008605,1754203838927,-500.0,0.00027934,2]
[377008606,1754203838936,-291.448607,0.00027934,2]
[377008607,1754203838945,-500.0,0.00027934,2]
[377008608,1754203838955,-577.02094087,0.00027934,2]
[377008609,1754203838964,-362.10333084,0.00027934,2]
[377008614,1754203840688,-159.02,0.00026971,7]
[377008615,1754203840698,-92.01624312,0.00027634,7]
[377008625,1754203843561,-67.00375688,0.00027634,7]
[377008626,1754203843571,-137.89666916,0.00027934,2]
[377008627,1754203843581,-500.0,0.00027934,2]
[377008628,1754203843590,-500.0,0.00027934,2]
[377008629,1754203843600,-500.0,0.00027934,2]
[377008630,1754203843609,-500.0,0.00027934,2]
[377008631,1754203843619,-500.0,0.00027934,2]
[377008632,1754203843628,-500.0,0.00027934,2]
[377008633,1754203843638,-210.22613418,0.00027934,2]
[377008634,1754203843647,-500.0,0.00027934,2]
[377008635,1754203843657,-500.0,0.00027934,2]
[377008636,1754203843666,-500.0,0.00027934,2]
[377008637,1754203843676,-500.0,0.00027934,2]
[377008638,1754203843685,-500.0,0.00027934,2]
[377008639,1754203843695,-500.0,0.00027934,2]
[377008640,1754203843703,-183.28080088,0.00027934,2]
[377008649,1754204222868,161.400754,0.00013699,2]
[377008650,1754204223080,161.400754,0.00021404,2]
[377008653,1754204545242,34192.6422367,0.00028223,35]
[377008654,1754204589348,1104.80099066,0.00023061,2]
[377008656,1754204714587,1423.22247452,0.00023061,2]
[377008657,1754204740154,-157.84267823,0.000232,2]
[377008658,1754204740175,-160.0,0.00023234,2]
[377008659,1754204740194,-187.36391696,0.00023234,2]
[377008660,1754204740214,-1137.43709805,0.00023234,2]
[377008662,1754204777170,362.01,0.00023048,2]
[377008663,1754204799130,-160.0,0.00023234,2]
[377008664,1754204799153,-26.64578582,0.000233,2]
[377008725,1754205031992,-154.31530309,0.000233,2]
[377008727,1754205032005,-157.84267822,0.00024056,2]
[377008729,1754205032014,-501.8505177,0.0002411,2]
[377008731,1754205032024,-1200.0,0.00024156,2]
[377008733,1754205032035,-300.0,0.00024156,2]
[377008735,1754205032044,-154.79867647,0.00024156,2]
[377008870,1754205037990,-145.20132353,0.00024156,2]
[377008871,1754205038004,-189.92,0.00024156,2]
[377008872,1754205038014,-11927.6163811,0.00024157,2]
[377008873,1754205038024,-364.05647901,0.00024383,2]
[377008874,1754205038034,-189.92,0.00024791,2]
[377008875,1754205038044,-158.87480687,0.00025,2]
[377008876,1754205038054,-174.339441,0.00025032,2]
[377008877,1754205038064,-150.0,0.00025057,2]
[377008878,1754205038074,-37603.48311908,0.00025146,2]
[377008879,1754205038083,-500.0,0.00025173,2]
[377008880,1754205038093,-4123.9663624,0.00025197,2]
[377008881,1754205038103,-200.0,0.00025363,15]
[377008882,1754205038112,-300.0,0.00025363,15]
[377008883,1754205038126,-189.92,0.00025426,7]
[377008884,1754205038135,-301.0736098,0.00025574,2]
[377008885,1754205038144,-184.47,0.00025586,2]
[377008886,1754205038154,-1000.0,0.00025721,2]
[377008887,1754205038164,-218.92812483,0.00025728,2]
[377008888,1754205038174,-361.1525008,0.00025858,2]
[377008889,1754205038184,-218.50430168,0.000259,14]
[377008890,1754205038194,-218.50430139,0.00026003,14]
[377008891,1754205038204,-189.92,0.00026061,7]
[377008892,1754205038214,-218.50430139,0.00026107,14]
[377008893,1754205038223,-153.94774233,0.00026123,2]
[377008894,1754205038233,-420.0,0.00026191,2]
[377008895,1754205038242,-2789.68427491,0.000262,7]
[377008896,1754205038252,-218.50430139,0.0002621,14]
[377008897,1754205038262,-1500.0,0.00026268,2]
[377008898,1754205038276,-480.0,0.00026311,2]
[377008899,1754205038286,-218.50430139,0.00026314,14]
[377008900,1754205038295,-156.7441633,0.0002634,2]
[377008901,1754205038305,-218.50430139,0.00026417,15]
[377008902,1754205038315,-218.50430139,0.00026521,15]
[377008903,1754205038325,-218.50430139,0.00026624,15]
[377008904,1754205038335,-218.50430139,0.00026728,15]
[377008905,1754205038344,-215.12253551,0.00026787,2]
[377008906,1754205038354,-160.672,0.00026789,14]
[377008907,1754205038364,-251.89285734,0.00026797,2]
[377008908,1754205038373,-2000.0,0.00026816,2]
[377008909,1754205038383,-218.50430139,0.00026831,15]
[377008910,1754205038393,-506.85664384,0.00026875,2]
[377008911,1754205038402,-500.0,0.00026911,2]
[377008912,1754205038412,-218.50430139,0.00026934,16]
[377008913,1754205038421,-501.28342465,0.00026973,2]
[377008914,1754205038431,-500.0,0.00026973,2]
[377008915,1754205038440,-500.0,0.00026973,2]
[377008916,1754205038449,-500.0,0.00026973,2]
[377008917,1754205038458,-500.0,0.00026973,2]
[377008918,1754205038614,-500.0,0.00026973,2]
[377008919,1754205038623,-500.0,0.00026973,2]
[377008920,1754205038633,-501.33624158,0.00026973,2]
[377008921,1754205038643,-506.34173963,0.00026973,2]
[377008922,1754205038652,-511.09420633,0.00026973,2]
[377008923,1754205038662,-524.56,0.00026975,10]
[377008924,1754205038674,-15847.1431974,0.0002698,2]
[377008925,1754205038683,-12649.34751639,0.00026985,2]
[377008926,1754205038693,-218.50430139,0.00027038,16]
[377008927,1754205038703,-430.545078,0.0002704,2]
[377008928,1754205038713,-430.545078,0.0002704,2]
[377008929,1754205038723,-430.545078,0.0002704,2]
[377008930,1754205038732,-430.545078,0.0002704,2]
[377008931,1754205038742,-218.50430139,0.00027141,16]
[377008932,1754205038751,-15847.1431974,0.00027152,2]
[377008933,1754205038761,-3569.62,0.00027161,2]
[377008934,1754205038770,-500.0,0.00027161,2]
[377008935,1754205038779,-175.22454898,0.00027161,2]
[377008936,1754205038789,-190.02512602,0.00027161,2]
[377008937,1754205038799,-500.0,0.00027161,2]
[377008938,1754205038809,-500.0,0.00027161,2]
[377008939,1754205038818,-500.0,0.00027161,2]
[377008940,1754205038828,-410.08892189,0.00027161,2]
[377008941,1754205038838,-500.0,0.00027161,2]
[377008942,1754205038848,-500.0,0.00027161,2]
[377008943,1754205038858,-500.0,0.00027161,2]
[377008944,1754205038868,-500.0,0.00027161,2]
[377008945,1754205038877,-500.0,0.00027161,2]
[377008946,1754205038887,-500.0,0.00027161,2]
[377008947,1754205038896,-500.0,0.00027161,2]
[377008948,1754205038906,-500.0,0.00027161,2]
[377008949,1754205038915,-500.0,0.00027161,2]
[377008950,1754205038924,-500.0,0.00027161,2]
[377008951,1754205038934,-160.2486403,0.00027162,2]
[377008952,1754205038943,-160.2486403,0.00027162,2]
[377008953,1754205038953,-309.1036508,0.00027162,2]
[377008954,1754205038963,-160.2486403,0.00027162,2]
[377008955,1754205038972,-578.7022727,0.00027162,2]
[377008956,1754205038981,-153.0,0.00027162,2]
[377008957,1754205038991,-578.7022727,0.00027162,2]
[377008958,1754205039000,-160.2486403,0.00027162,2]
[377008959,1754205039010,-578.7022727,0.00027162,2]
[377008960,1754205039019,-153.0,0.00027162,2]
[377008961,1754205039028,-578.7022727,0.00027162,2]
[377008962,1754205039038,-160.2486403,0.00027162,2]
[377008963,1754205039047,-1171.0121941,0.00027162,2]
[377008964,1754205039057,-356.940285,0.00027162,2]
[377008965,1754205039066,-178.5956294,0.00027162,2]
[377008966,1754205039075,-178.5956294,0.00027162,2]
[377008967,1754205039085,-577.5984248,0.00027162,2]
[377008968,1754205039094,-160.2486403,0.00027162,2]
[377008969,1754205039103,-178.5956294,0.00027162,2]
[377008970,1754205039113,-160.2486403,0.00027162,2]
[377008971,1754205039122,-178.5956294,0.00027162,2]
[377008972,1754205039131,-578.7022727,0.00027162,2]
[377008973,1754205039141,-178.5956294,0.00027162,2]
[377008974,1754205039150,-160.2486403,0.00027162,2]
[377008975,1754205039160,-578.7022727,0.00027162,2]
[377008976,1754205039169,-178.5956294,0.00027162,2]
[377008977,1754205039179,-178.5956294,0.00027162,2]
[377008978,1754205039188,-160.2486403,0.00027162,2]
[377008979,1754205039198,-578.7022727,0.00027162,2]
[377008980,1754205039208,-178.5956294,0.00027162,2]
[377008981,1754205039217,-1157.1853039,0.00027162,2]
[377008982,1754205039227,-160.2486403,0.00027162,2]
[377008984,1754205039236,-178.5956294,0.00027162,2]
[377008985,1754205039245,-160.2486403,0.00027162,2]
[377008986,1754205039255,-578.7022727,0.00027162,2]
[377008987,1754205039264,-160.2486403,0.00027162,2]
[377008988,1754205039273,-178.5956294,0.00027162,2]
[377008989,1754205039282,-429.9177812,0.00027162,2]
[377008990,1754205039292,-178.5956294,0.00027162,2]
[377008991,1754205039301,-160.2486403,0.00027162,2]
[377008992,1754205039311,-578.7022727,0.00027162,2]
[377008993,1754205039320,-178.5956294,0.00027162,2]
[377008994,1754205039330,-177.7496024,0.00027162,2]
[377008995,1754205039339,-160.2486403,0.00027162,2]
[377008996,1754205039348,-160.2486403,0.00027162,2]
[377008997,1754205039358,-178.5956294,0.00027162,2]
[377008998,1754205039367,-178.5956294,0.00027162,2]
[377008999,1754205039376,-160.2486403,0.00027162,2]
[377009000,1754205039385,-160.2486403,0.00027162,2]
[377009001,1754205039395,-178.5956294,0.00027162,2]
[377009002,1754205039404,-178.5956294,0.00027162,2]
[377009003,1754205039413,-320.3539951,0.00027162,2]
[377009004,1754205039423,-178.5956294,0.00027162,2]
[377009005,1754205039432,-160.2486403,0.00027162,2]
[377009006,1754205039441,-178.5956294,0.00027162,2]
[377009007,1754205039450,-178.5956294,0.00027162,2]
[377009008,1754205039460,-178.5956294,0.00027162,2]
[377009009,1754205039470,-178.5956294,0.00027162,2]
[377009010,1754205039480,-178.5956294,0.00027162,2]
[377009011,1754205039491,-178.5956294,0.00027162,2]
[377009012,1754205039501,-159.7579147,0.00027178,2]
[377009014,1754205039511,-178.5956294,0.00027178,2]
[377009016,1754205039520,-218.50430139,0.00027245,16]
[377009017,1754205039529,-218.50430139,0.00027348,16]
[377009019,1754205039538,-163.3147958,0.00027358,2]
[377009020,1754205039547,-2500.0,0.00027364,2]
[377009021,1754205039557,-578.7022727,0.00027397,2]
[377009022,1754205039567,-306.0,0.00027397,2]
[377009023,1754205039576,-160.2486403,0.00027397,2]
[377009024,1754205039586,-356.6392599,0.00027397,2]
[377009025,1754205039604,-578.7022727,0.00027397,2]
[377009026,1754205039616,-153.0,0.00027397,2]
[377009027,1754205039626,-160.2486403,0.00027397,2]
[377009028,1754205039635,-578.7022727,0.00027397,2]
[377009029,1754205039645,-153.0,0.00027397,2]
[377009030,1754205039655,-160.2486403,0.00027397,2]
[377009032,1754205039665,-578.7022727,0.00027397,2]
[377009033,1754205039675,-160.2486403,0.00027397,2]
[377009035,1754205039684,-578.7022727,0.00027397,2]
[377009037,1754205039694,-1153.9944271,0.00027397,2]
[377009038,1754205039705,-153.0,0.00027397,2]
[377009040,1754205039717,-160.2486403,0.00027397,2]
[377009041,1754205039727,-160.2486403,0.00027397,2]
[377009042,1754205039736,-153.0,0.00027397,2]
[377009043,1754205039746,-160.2486403,0.00027397,2]
[377009044,1754205039756,-218.50430139,0.00027452,17]
[377009045,1754205039765,-504.94630883,0.00027459,5]
[377009046,1754205039775,-6138.0285869,0.0002752,2]
[377009047,1754205039784,-1000.0,0.00027521,5]
[377009048,1754205039794,-218.50430139,0.00027555,17]
[377009049,1754205039804,-307.55,0.00027634,3]
[377009050,1754205039813,-153.77,0.00027634,3]
[377009051,1754205039823,-615.1,0.00027635,3]
[377009052,1754205039833,-461.36,0.00027635,3]
[377009053,1754205039843,-10630.59375966,0.00027644,2]
[377009055,1754205039853,-658.65570874,0.00027644,2]
[377009057,1754205039863,-15847.1431974,0.00027652,2]
[377009059,1754205039874,-218.50430139,0.00027659,17]
[377009061,1754205039884,-155.5613109,0.00027671,30]
[377009063,1754205039895,-151.0,0.0002769,7]
[377009065,1754205039906,-1230.2,0.00027724,3]
[377009067,1754205039917,-47325.82685102,0.00027735,2]
[377009073,1754205039968,-189.92,0.00026696,7]
[377009075,1754205039977,-189.92,0.00027397,7]
[377009077,1754205039987,-308.27384462,0.00027735,2]
[377009079,1754205039999,-10295.65307311,0.00027735,2]
[377009082,1754205040011,-12499.8459971,0.00027735,2]
[377009084,1754205040023,-3329.24096322,0.00027735,2]
[377009086,1754205040034,-2292.40142651,0.00027735,2]
[377009088,1754205040045,-5138.30225386,0.00027735,2]
[377009091,1754205040062,-437.13,0.00027725,10]
[377009093,1754205040071,-329.30917421,0.00027735,2]
[377009646,1754205045980,-160.2486403,0.00027397,2]
[377009648,1754205045990,-159.10526849,0.00027735,2]
[377009651,1754205046002,-10473.32851949,0.00027735,2]
[377009654,1754205046014,-18778.71501037,0.00027735,2]
[377009656,1754205046024,-470.92714988,0.00027744,2]
[377009658,1754205046033,-24601.10310327,0.00027745,2]
[377010848,1754205165454,2000.0,0.00028224,30]
[377010849,1754205165838,984.2,0.00028224,30]
[377010850,1754205253548,165.294031,0.00013699,2]
[377010851,1754205253772,165.294031,0.00021918,2]
[377010857,1754205795537,1594.81834123,0.00023061,2]
[377010858,1754205856197,184.09351148,0.00023061,2]
[377010859,1754205871661,276.26089417,0.00023061,2]
[377010860,1754205901583,1281.61073989,0.00023061,2]
[377010861,1754205935102,-250.15,0.00023515,2]
[377010862,1754205935128,-160.0,0.000241,2]
[377010863,1754205935151,-250.15,0.00024154,2]
[377010864,1754205935175,-250.15,0.00024794,2]
[377010865,1754205935199,-150.0,0.00025108,2]
[377010866,1754205935221,-543.56380918,0.00025142,2]
[377010869,1754205992105,-166.77,0.00023717,2]
[377010870,1754205992134,-17.57873892,0.00024344,2]
[377010892,1754206187224,150.0,0.00023042,2]
[377010946,1754206232245,-280.82252398,0.00024,2]
[377010948,1754206232255,-965.91439748,0.0002465,2]
[377010950,1754206232264,-300.0,0.00024999,2]
[377010952,1754206232274,-393.0,0.00024999,2]
[377010954,1754206232284,-360.26307854,0.00025,4]
[377010958,1754206232297,-14345.67648463,0.00025,4]
[377010962,1754206232306,-150.99999955,0.00025,5]
[377010965,1754206232316,-456.43619082,0.00025142,2]
[377010967,1754206232326,-745.90695,0.00025294,2]
[377010969,1754206232335,-174.339441,0.0002536,2]
[377010971,1754206232347,-264.1314218,0.000254,2]
[377010973,1754206232356,-263.862184,0.00025408,2]
[377010975,1754206232366,-5296.80814496,0.00025621,2]
[377010977,1754206232378,-1151.2,0.00025621,2]
[377011136,1754206238198,-722.65372375,0.000249,12]
[377011137,1754206238212,-784.93927625,0.00025621,2]
[377011138,1754206238224,-2767.05257879,0.00025621,2]
[377011139,1754206238234,-6232.43266528,0.00025644,4]
[377011140,1754206238243,-200.0,0.00026249,15]
[377011141,1754206238253,-300.0,0.00026249,15]
[377011142,1754206238262,-178.5956294,0.0002634,2]
[377011143,1754206238271,-178.5956294,0.00026378,2]
[377011144,1754206238281,-178.5956294,0.00026378,2]
[377011145,1754206238291,-173.600261,0.00026378,2]
[377011146,1754206238438,-153.0,0.00026575,2]
[377011147,1754206238448,-158.11,0.00026633,2]
[377011148,1754206238457,-1000.0,0.0002678,5]
[377011149,1754206238467,-160.673,0.00026901,14]
[377011150,1754206238476,-153.0,0.00026978,2]
[377011151,1754206238485,-364.27,0.0002698,10]
[377011152,1754206238495,-303.56,0.0002698,10]
[377011153,1754206238504,-7923.57159871,0.0002698,2]
[377011154,1754206238514,-500.0,0.00026989,2]
[377011155,1754206238523,-323.34321354,0.00026989,2]
[377011156,1754206238532,-20268.3928103,0.0002699,2]
[377011157,1754206238543,-6563.92309797,0.0002699,2]
[377011161,1754206240311,-699.40999992,0.0002699,2]
[377011162,1754206240353,-14480.82754432,0.0002699,2]
[377011163,1754206240364,-54729.32772847,0.0002699,2]
[377011164,1754206240374,-420.0,0.00027082,2]
[377011165,1754206240383,-190.53392843,0.00027358,2]
[377011166,1754206240392,-15847.1431974,0.00027635,2]
[377011167,1754206240401,-3465.41,0.00027644,2]
[377011168,1754206240411,-89792.41679503,0.00027645,2]
[377011169,1754206240420,-552.22024188,0.00027673,5]
[377011170,1754206240429,-500.0,0.00027673,5]
[377011171,1754206240438,-236.46206706,0.00027673,5]
[377011172,1754206240448,-500.0,0.00027673,5]
[377011173,1754206240457,-253.32797318,0.00027673,5]
[377011174,1754206240466,-500.0,0.00027673,5]
[377011175,1754206240475,-500.0,0.00027673,5]
[377011176,1754206240484,-500.0,0.00027673,5]
[377011177,1754206240493,-500.0,0.00027673,5]
[377011178,1754206240502,-3494.58939683,0.00027745,2]
[377011179,1754206240511,-200.0,0.00027745,10]
[377011180,1754206240520,-200.0,0.00027745,10]
[377011181,1754206240529,-200.0,0.00027745,10]
[377011182,1754206240539,-200.0,0.00027745,10]
[377011183,1754206240548,-200.0,0.00027745,10]
[377011184,1754206240564,-200.0,0.00027745,10]
[377011185,1754206240578,-200.0,0.00027745,10]
[377011186,1754206240588,-200.0,0.00027745,10]
[377011187,1754206240597,-200.0,0.00027745,10]
[377011188,1754206240606,-200.0,0.00027745,10]
[377011189,1754206240615,-200.0,0.00027745,10]
[377011190,1754206240624,-200.0,0.00027745,10]
[377011191,1754206240633,-200.0,0.00027745,10]
[377011192,1754206240642,-200.0,0.00027745,10]
[377011194,1754206240651,-200.0,0.00027745,10]
[377011196,1754206240661,-200.0,0.00027745,10]
[377011198,1754206240670,-262.579659,0.00027745,10]
[377011200,1754206240679,-151.0,0.00027795,7]
[377011201,1754206240689,-768.87,0.00027825,3]
[377011202,1754206240699,-384.43,0.00027825,3]
[377011203,1754206240708,-192.22,0.00027825,3]
[377011205,1754206240717,-576.68,0.00027825,3]
[377011207,1754206240727,-8061.86946579,0.00027844,2]
[377011209,1754206240736,-800.95657242,0.00027845,2]
[377011211,1754206240745,-151.0,0.00027898,7]
[377011213,1754206240755,-151.0,0.000279,2]
[377011215,1754206240764,-151.0,0.000279,2]
[377011217,1754206240773,-151.0,0.000279,2]
[377011219,1754206240783,-187.56482324,0.000279,2]
[377011221,1754206240792,-187.56482324,0.000279,2]
[377011223,1754206240802,-7923.57159871,0.00027905,2]
[377011224,1754206240811,-800.95657241,0.00027915,2]
[377011227,1754206240820,-456.68016274,0.00027934,2]
[377011229,1754206240830,-464.09692494,0.00027934,2]
[377011231,1754206240839,-3417.7508896,0.00027935,2]
[377011233,1754206240848,-4966.94963531,0.00027935,2]
[377011295,1754206243400,-262.248948,0.00027935,2]
[377011296,1754206243412,-1197.18820411,0.00027935,2]
[377011297,1754206243424,-2414.56032924,0.00027935,2]
[377011298,1754206243437,-2809.98995056,0.00027935,2]
[377011313,1754206257610,-420805.85501641,0.00028225,20]
[377011314,1754206257634,-2204174.61220433,0.00028225,20]
[377011315,1754206257658,-811217.42367151,0.00028225,20]
[377011316,1754206257682,-809473.01353506,0.00028225,20]
[377011317,1754206257707,-482503.36718696,0.00028225,20]
[377011318,1754206318186,166.950376,0.00013699,2]
[377011319,1754206318404,166.950376,0.00022505,2]
[377011320,1754206355279,3042.1131575,0.00021705,2]
[377011321,1754206364465,150.0,0.00028225,30]
[377013237,1754206667259,1776274.46834378,0.00028224,120]
[377013309,1754207080142,180.02511878,0.0002236,2]
[377013316,1754207120418,-913723.53165626,0.00028229,120]
[377013317,1754207120445,-1850.2,0.00028229,30]
[377013323,1754207155117,-180.1826056,0.00024831,2]
[377013324,1754207155137,-150.12737016,0.000249,2]
[377013325,1754207155162,-150.0,0.00025082,2]
[377013326,1754207155184,-1000.0,0.00025761,2]
[377013327,1754207155208,-150.0,0.00026125,2]
[377013328,1754207155230,-120.13914,0.00026352,2]
[377013329,1754207164634,-200.0,0.00028214,120]
[377013330,1754207164661,-200.0,0.00028224,120]
[377013331,1754207164689,-508.4880679,0.00028225,120]
[377013332,1754207164717,-200.0,0.0002835,120]
[377013333,1754207164746,-200.0,0.00028391,120]
[377013334,1754207164774,-200.0,0.00028396,120]
[377013335,1754207164800,-200.0,0.00028422,120]
[377013336,1754207164830,-200.0,0.00028443,120]
[377013337,1754207164858,-200.0,0.00028466,120]
[377013338,1754207164886,-200.0,0.00028518,120]
[377013339,1754207164916,-200.0,0.00028527,120]
[377013340,1754207164945,-200.0,0.00028543,120]
[377013341,1754207164972,-200.0,0.0002855,120]
[377013342,1754207164999,-200.0,0.00028551,120]
[377013343,1754207165024,-200.0,0.00028566,120]
[377013344,1754207165049,-200.0,0.00028592,120]
[377013345,1754207165185,-152.0,0.000286,120]
[377013346,1754207165211,-200.0,0.00028613,120]
[377013347,1754207165236,-200.0,0.00028634,120]
[377013348,1754207165262,-200.0,0.00028635,120]
[377013349,1754207165286,-200.0,0.00028648,120]
[377013350,1754207165313,-200.0,0.00028677,120]
[377013351,1754207165340,-200.0,0.00028728,120]
[377013352,1754207165365,-200.0,0.00028728,120]
[377013353,1754207165390,-200.0,0.0002876,120]
[377013354,1754207165415,-200.0,0.00028778,120]
[377013355,1754207165440,-200.0,0.000288,120]
[377013356,1754207165466,-200.0,0.00028822,120]
[377013357,1754207165492,-200.0,0.00028925,120]
[377013358,1754207165517,-200.0,0.00028933,120]
[377013359,1754207165543,-200.0,0.00028957,120]
[377013360,1754207165576,-212.85141,0.00029,120]
[377013361,1754207165602,-200.0,0.00029113,120]
[377013362,1754207165627,-200.0,0.00029183,120]
[377013363,1754207165652,-200.0,0.00029216,120]
[377013364,1754207165684,-200.0,0.00029253,120]
[377013365,1754207165709,-200.0,0.00029312,120]
[377013366,1754207165736,-200.0,0.00029324,120]
[377013367,1754207165762,-200.0,0.0002934,120]
[377013368,1754207165788,-200.0,0.0002937,120]
[377013369,1754207165815,-200.0,0.00029373,120]
[377013370,1754207165841,-152.0,0.000298,120]
[377013371,1754207165868,-700.0,0.0003,120]
[377013372,1754207165892,-1000.0,0.0003,120]
[377013373,1754207165916,-200.0,0.0003,120]
[377013374,1754207165941,-204.14349475,0.0003,120]
[377013375,1754207165965,-160.0,0.0003,120]
[377013377,1754207191420,200.0,0.00028251,120]
[377013378,1754207197489,752.2897735,0.00030137,120]
[377013379,1754207216092,-180.59921893,0.00024,2]
[377013381,1754207218140,204.14349475,0.0003,120]
[377013395,1754207254160,157.366272,0.00013699,2]